[Event "*** Titled Tuesday Blitz"]
[Site "Chess.com"]
[Date "2021.03.16"]
[Round "5"]
[White "Bacyanide"]
[Black "Omk124"]
[Result "0-1"]
[WhiteElo "2408"]
[BlackElo "2557"]
[TimeControl "180+1"]
[EndTime "10:55:20 PDT"]
[Termination "Omk124 won on time"]

1. d4 {[%clk 0:03:00.9]} 1... Nf6 {[%clk 0:02:59.8]} 2. c4 {[%clk 0:03:01.3]}
2... g6 {[%clk 0:03:00.2]} 3. Nc3 {[%clk 0:03:01.6]} 3... d5 {[%clk 0:03:00.7]}
4. cxd5 {[%clk 0:02:59.6]} 4... Nxd5 {[%clk 0:03:01.6]} 5. e4 {[%clk 0:02:59.8]}
5... Nxc3 {[%clk 0:03:02.1]} 6. bxc3 {[%clk 0:03:00.3]} 6... Bg7 {[%clk
0:03:02.8]} 7. Nf3 {[%clk 0:02:59.9]} 7... c5 {[%clk 0:03:02.9]} 8. Be3 {[%clk
0:02:59.6]} 8... O-O {[%clk 0:03:03.1]} 9. h3 {[%clk 0:02:59]} 9... Nc6 {[%clk
0:03:02.5]} 10. Be2 {[%clk 0:02:57.8]} 10... Qa5 {[%clk 0:02:55.5]} 11. Bd2
{[%clk 0:02:57.1]} 11... Rd8 {[%clk 0:02:27.1]} 12. O-O {[%clk 0:02:38.8]} 12...
Qc7 {[%clk 0:02:22.8]} 13. d5 {[%clk 0:02:37.3]} 13... Ne5 {[%clk 0:02:22.8]}
14. Nxe5 {[%clk 0:02:31.9]} 14... Bxe5 {[%clk 0:02:23.7]} 15. Rb1 {[%clk
0:02:17.2]} 15... Bf4 {[%clk 0:02:16.8]} 16. c4 {[%clk 0:02:14]} 16... b6 {[%clk
0:02:16]} 17. Rb3 {[%clk 0:02:08.1]} 17... e6 {[%clk 0:02:03.9]} 18. Rf3 {[%clk
0:01:57.6]} 18... Bxd2 {[%clk 0:02:02.6]} 19. Qxd2 {[%clk 0:01:58.5]} 19... exd5
{[%clk 0:02:02.5]} 20. cxd5 {[%clk 0:01:58.4]} 20... Bb7 {[%clk 0:01:59.3]} 21.
h4 {[%clk 0:01:56.1]} 21... Re8 {[%clk 0:01:57.6]} 22. Bd3 {[%clk 0:01:46.5]}
22... Qe5 {[%clk 0:01:55.1]} 23. Qh6 {[%clk 0:01:30.6]} 23... Rad8 {[%clk
0:01:36.7]} 24. h5 {[%clk 0:01:29.4]} 24... Qxh5 {[%clk 0:01:34.1]} 25. Qxh5
{[%clk 0:01:28.7]} 25... gxh5 {[%clk 0:01:35]} 26. Rf5 {[%clk 0:01:25.3]} 26...
h4 {[%clk 0:01:33.1]} 27. Rh5 {[%clk 0:01:16.2]} 27... c4 {[%clk 0:01:31.7]} 28.
Bc2 {[%clk 0:01:13]} 28... f6 {[%clk 0:01:29.1]} 29. Rxh4 {[%clk 0:01:09.9]}
29... Re5 {[%clk 0:01:28.9]} 30. f4 {[%clk 0:01:08.6]} 30... Re7 {[%clk
0:01:28.5]} 31. Rd1 {[%clk 0:01:01.7]} 31... f5 {[%clk 0:01:24.7]} 32. d6 {[%clk
0:00:53.4]} 32... Rg7 {[%clk 0:01:13.7]} 33. Kf2 {[%clk 0:00:34.4]} 33... fxe4
{[%clk 0:01:12.4]} 34. g4 {[%clk 0:00:33.4]} 34... Rg6 {[%clk 0:00:57.4]} 35.
Ke3 {[%clk 0:00:31.3]} 35... Rgxd6 {[%clk 0:00:56.7]} 36. Rxd6 {[%clk
0:00:32.2]} 36... Rxd6 {[%clk 0:00:57.5]} 37. Rh5 {[%clk 0:00:32.7]} 37... Rg6
{[%clk 0:00:53.2]} 38. g5 {[%clk 0:00:30.9]} 38... Rd6 {[%clk 0:00:47.5]} 39. f5
{[%clk 0:00:29.2]} 39... c3 {[%clk 0:00:40.9]} 40. Rh2 {[%clk 0:00:19.8]} 40...
Rd5 {[%clk 0:00:35.5]} 41. Kf4 {[%clk 0:00:15.2]} 41... e3 {[%clk 0:00:30.7]}
42. Kxe3 {[%clk 0:00:14.3]} 42... Re5+ {[%clk 0:00:26.2]} 43. Kd4 {[%clk
0:00:13.4]} 43... Rc5 {[%clk 0:00:24.5]} 44. f6 {[%clk 0:00:12.8]} 44... Rxg5
{[%clk 0:00:24.6]} 45. Rxh7 {[%clk 0:00:11.2]} 45... Rg2 {[%clk 0:00:22]} 46.
Rxb7 {[%clk 0:00:10.5]} 46... Rxc2 {[%clk 0:00:21.9]} 47. Rxa7 {[%clk
0:00:10.9]} 47... Rc1 {[%clk 0:00:19.9]} 48. Rc7 {[%clk 0:00:08.5]} 48... Rd1+
{[%clk 0:00:17.1]} 49. Ke5 {[%clk 0:00:01.6]} 49... Re1+ {[%clk 0:00:14.5]} 50.
Kf5 {[%clk 0:00:01.2]} 50... Rf1+ {[%clk 0:00:10.3]} 51. Ke5 {[%clk 0:00:01.3]}
51... Rf3 {[%clk 0:00:08.9]} 0-1

[Event "*** Titled Tuesday Blitz"]
[Site "Chess.com"]
[Date "2021.03.16"]
[Round "5"]
[White "AttackSparrow"]
[Black "IAgrest"]
[Result "1-0"]
[WhiteElo "2514"]
[BlackElo "2306"]
[TimeControl "180+1"]
[EndTime "10:55:22 PDT"]
[Termination "AttackSparrow won by resignation"]

1. e4 {[%clk 0:03:00.9]} 1... e5 {[%clk 0:02:59.5]} 2. Nc3 {[%clk 0:02:59.7]}
2... Nc6 {[%clk 0:02:59.6]} 3. Bc4 {[%clk 0:02:59.4]} 3... Nf6 {[%clk
0:02:59.4]} 4. d3 {[%clk 0:02:59.2]} 4... Bc5 {[%clk 0:02:58.9]} 5. f4 {[%clk
0:02:59.1]} 5... d6 {[%clk 0:02:58.4]} 6. Nf3 {[%clk 0:02:59.2]} 6... a6 {[%clk
0:02:53.6]} 7. h3 {[%clk 0:02:56.6]} 7... Be6 {[%clk 0:02:21.3]} 8. Bxe6 {[%clk
0:02:42.2]} 8... fxe6 {[%clk 0:02:20.8]} 9. Qe2 {[%clk 0:02:39]} 9... Qe7 {[%clk
0:02:09.2]} 10. Be3 {[%clk 0:02:33.4]} 10... Bxe3 {[%clk 0:01:53.5]} 11. Qxe3
{[%clk 0:02:34.3]} 11... exf4 {[%clk 0:01:53.8]} 12. Qxf4 {[%clk 0:02:31]} 12...
O-O {[%clk 0:01:52.9]} 13. Qe3 {[%clk 0:02:27.7]} 13... b5 {[%clk 0:01:43]} 14.
O-O-O {[%clk 0:02:24.3]} 14... b4 {[%clk 0:01:36.9]} 15. Ne2 {[%clk 0:02:22.9]}
15... d5 {[%clk 0:01:35]} 16. e5 {[%clk 0:02:20.1]} 16... Nd7 {[%clk 0:01:33.3]}
17. d4 {[%clk 0:02:19.4]} 17... Nb6 {[%clk 0:01:32.5]} 18. Qg5 {[%clk 0:02:07]}
18... Nc4 {[%clk 0:01:23.9]} 19. Qxe7 {[%clk 0:01:49.5]} 19... Nxe7 {[%clk
0:01:24.8]} 20. Rd3 {[%clk 0:01:37.9]} 20... h6 {[%clk 0:01:23.2]} 21. b3 {[%clk
0:01:34.5]} 21... Nb6 {[%clk 0:01:13.5]} 22. c3 {[%clk 0:01:30.1]} 22... a5
{[%clk 0:01:11.2]} 23. Kb2 {[%clk 0:01:26.1]} 23... Ng6 {[%clk 0:01:01.4]} 24.
Rc1 {[%clk 0:01:24.6]} 24... Ra7 {[%clk 0:01:00.8]} 25. Rd2 {[%clk 0:01:13.6]}
25... Rfa8 {[%clk 0:00:55.6]} 26. Rdc2 {[%clk 0:01:12.5]} 26... Kh7 {[%clk
0:00:30.7]} 27. h4 {[%clk 0:01:07.7]} 27... Ne7 {[%clk 0:00:22.4]} 28. Kb1
{[%clk 0:01:03.7]} 28... Nf5 {[%clk 0:00:20.8]} 29. Nf4 {[%clk 0:00:53]} 29...
a4 {[%clk 0:00:14.6]} 30. cxb4 {[%clk 0:00:31.1]} 30... axb3 {[%clk 0:00:14.3]}
31. Rxc7 {[%clk 0:00:29.5]} 31... Rxa2 {[%clk 0:00:09.6]} 32. Nxe6 {[%clk
0:00:25.7]} 32... Nc4 {[%clk 0:00:09.5]} 33. R1xc4 {[%clk 0:00:17.6]} 33... dxc4
{[%clk 0:00:09.7]} 34. Rxc4 {[%clk 0:00:18.5]} 34... b2 {[%clk 0:00:08.8]} 35.
Nd2 {[%clk 0:00:18.2]} 35... Ne3 {[%clk 0:00:08]} 36. Rc7 {[%clk 0:00:17]} 36...
Nd1 {[%clk 0:00:08.1]} 37. Rxg7+ {[%clk 0:00:14.5]} 37... Kh8 {[%clk 0:00:08.5]}
38. Kc2 {[%clk 0:00:14.7]} 38... Ra1 {[%clk 0:00:07.1]} 39. Rg6 {[%clk
0:00:11.4]} 39... Rc1+ {[%clk 0:00:06.2]} 40. Kd3 {[%clk 0:00:11.7]} 40... b1=Q+
{[%clk 0:00:03.6]} 41. Nxb1 {[%clk 0:00:12]} 41... Rxb1 {[%clk 0:00:04.5]} 42.
Rxh6+ {[%clk 0:00:12.2]} 42... Kg8 {[%clk 0:00:05.1]} 43. Rg6+ {[%clk
0:00:12.8]} 43... Kf7 {[%clk 0:00:04.7]} 44. Rf6+ {[%clk 0:00:13.7]} 44... Ke7
{[%clk 0:00:05.1]} 45. Ng5 {[%clk 0:00:13.9]} 45... Ra3+ {[%clk 0:00:04.7]} 46.
Ke4 {[%clk 0:00:14.2]} 46... Nc3+ {[%clk 0:00:04.1]} 47. Kf5 {[%clk 0:00:14.4]}
47... Rf1+ {[%clk 0:00:04]} 48. Kg6 {[%clk 0:00:15]} 48... Rxf6+ {[%clk
0:00:03.9]} 49. exf6+ {[%clk 0:00:15.9]} 49... Kd7 {[%clk 0:00:02]} 50. f7
{[%clk 0:00:16.3]} 50... Ra8 {[%clk 0:00:02]} 51. Kg7 {[%clk 0:00:16.6]} 51...
Ke7 {[%clk 0:00:02.1]} 52. Nh7 {[%clk 0:00:16.7]} 52... Nd5 {[%clk 0:00:02]} 53.
f8=Q+ {[%clk 0:00:17.1]} 53... Rxf8 {[%clk 0:00:02]} 54. Nxf8 {[%clk 0:00:17.9]}
54... Nxb4 {[%clk 0:00:02.1]} 55. Ng6+ {[%clk 0:00:18.5]} 55... Ke6 {[%clk
0:00:01.1]} 56. h5 {[%clk 0:00:19.4]} 56... Kf5 {[%clk 0:00:01.2]} 57. h6 {[%clk
0:00:19.7]} 57... Nd5 {[%clk 0:00:02.1]} 58. h7 {[%clk 0:00:19.3]} 58... Nf6
{[%clk 0:00:02.4]} 59. h8=Q {[%clk 0:00:18.9]} 1-0

[Event "*** Titled Tuesday Blitz"]
[Site "Chess.com"]
[Date "2021.03.16"]
[Round "5"]
[White "MateusViageiro"]
[Black "TheCairnTerrier"]
[Result "1/2-1/2"]
[WhiteElo "2359"]
[BlackElo "2156"]
[TimeControl "180+1"]
[EndTime "10:55:22 PDT"]
[Termination "Game drawn by agreement"]

1. e4 {[%clk 0:03:00.9]} 1... c5 {[%clk 0:02:59.5]} 2. Nf3 {[%clk 0:03:00.7]}
2... e6 {[%clk 0:02:59.3]} 3. d4 {[%clk 0:03:00.6]} 3... cxd4 {[%clk 0:02:59.3]}
4. Nxd4 {[%clk 0:03:00.7]} 4... Nf6 {[%clk 0:02:59.7]} 5. Nc3 {[%clk 0:03:00.7]}
5... d6 {[%clk 0:02:59.9]} 6. f3 {[%clk 0:03:00.7]} 6... Nc6 {[%clk 0:02:55.4]}
7. Be3 {[%clk 0:02:58.8]} 7... d5 {[%clk 0:02:55.4]} 8. Bb5 {[%clk 0:02:57.1]}
8... Bd7 {[%clk 0:02:48.2]} 9. exd5 {[%clk 0:02:38.2]} 9... Nxd5 {[%clk
0:02:26.2]} 10. Nxd5 {[%clk 0:02:34.7]} 10... exd5 {[%clk 0:02:27.1]} 11. O-O
{[%clk 0:02:33.1]} 11... Bc5 {[%clk 0:02:18.8]} 12. c3 {[%clk 0:02:28.9]} 12...
O-O {[%clk 0:02:16.4]} 13. Kh1 {[%clk 0:02:25.7]} 13... Re8 {[%clk 0:02:11.9]}
14. Bxc6 {[%clk 0:02:13.5]} 14... bxc6 {[%clk 0:02:10.8]} 15. Nxc6 {[%clk
0:02:12.9]} 15... Bxc6 {[%clk 0:01:59.5]} 16. Bxc5 {[%clk 0:02:12.9]} 16... Qh4
{[%clk 0:01:23.5]} 17. Bf2 {[%clk 0:02:08]} 17... Qc4 {[%clk 0:01:16.5]} 18. Bd4
{[%clk 0:01:56.4]} 18... a5 {[%clk 0:01:15]} 19. b3 {[%clk 0:01:53.5]} 19... Qe2
{[%clk 0:01:14.3]} 20. Re1 {[%clk 0:01:52.1]} 20... Qxd1 {[%clk 0:01:13]} 21.
Raxd1 {[%clk 0:01:42.5]} 21... a4 {[%clk 0:01:12.8]} 22. b4 {[%clk 0:01:39.3]}
22... a3 {[%clk 0:01:13.1]} 23. Kg1 {[%clk 0:01:33.1]} 23... Bb5 {[%clk
0:01:12.8]} 24. Kf2 {[%clk 0:01:22.3]} 24... Bc4 {[%clk 0:01:12.8]} 25. Rd2
{[%clk 0:01:16.5]} 25... f5 {[%clk 0:00:46.3]} 26. Rb1 {[%clk 0:01:14.6]} 26...
Rab8 {[%clk 0:00:40.2]} 27. b5 {[%clk 0:01:12.3]} 27... Rxb5 {[%clk 0:00:35.9]}
28. Rxb5 {[%clk 0:01:12.3]} 28... Bxb5 {[%clk 0:00:36.8]} 29. Bc5 {[%clk
0:01:11.6]} 29... Bc4 {[%clk 0:00:35.9]} 30. Bxa3 {[%clk 0:00:58]} 30... Ra8
{[%clk 0:00:35.5]} 31. Bb2 {[%clk 0:00:56.5]} 31... Rxa2 {[%clk 0:00:33.7]} 32.
Ke3 {[%clk 0:00:55.8]} 32... Ra7 {[%clk 0:00:28.7]} 33. Kf4 {[%clk 0:00:53.2]}
33... g6 {[%clk 0:00:27]} 34. g4 {[%clk 0:00:50.2]} 34... fxg4 {[%clk
0:00:25.8]} 35. fxg4 {[%clk 0:00:51.1]} 35... Rf7+ {[%clk 0:00:24.6]} 36. Kg3
{[%clk 0:00:51]} 36... Re7 {[%clk 0:00:20.7]} 37. Kf4 {[%clk 0:00:46.4]} 37...
Re2 {[%clk 0:00:19.9]} 38. Bc1 {[%clk 0:00:37.5]} 38... Rxd2 {[%clk 0:00:19.8]}
39. Bxd2 {[%clk 0:00:38.4]} 39... Ba2 {[%clk 0:00:20.5]} 40. Ke5 {[%clk
0:00:35.4]} 40... Bc4 {[%clk 0:00:21.4]} 41. Kf6 {[%clk 0:00:34.3]} 41... Ba2
{[%clk 0:00:22.3]} 42. Bh6 {[%clk 0:00:27.5]} 42... Bc4 {[%clk 0:00:23.2]} 43.
h4 {[%clk 0:00:26.5]} 43... Ba2 {[%clk 0:00:24.1]} 44. Be3 {[%clk 0:00:23.6]}
44... Bc4 {[%clk 0:00:24]} 45. Bd4 {[%clk 0:00:23.2]} 45... Ba2 {[%clk 0:00:24]}
46. Ke5 {[%clk 0:00:23]} 46... Bc4 {[%clk 0:00:24.1]} 47. Kd6 {[%clk 0:00:22.9]}
47... Ba2 {[%clk 0:00:24.4]} 48. Kc6 {[%clk 0:00:22.5]} 48... Bc4 {[%clk
0:00:24.8]} 49. Kc5 {[%clk 0:00:21.9]} 49... Ba2 {[%clk 0:00:23.5]} 50. Kb4
{[%clk 0:00:21.9]} 50... Kf7 {[%clk 0:00:23.7]} 51. Kc5 {[%clk 0:00:19.9]} 51...
Ke6 {[%clk 0:00:22.9]} 52. h5 {[%clk 0:00:18.1]} 52... gxh5 {[%clk 0:00:21.4]}
53. gxh5 {[%clk 0:00:19]} 53... Kf5 {[%clk 0:00:16.3]} 54. h6 {[%clk 0:00:19.1]}
54... Kg6 {[%clk 0:00:15.6]} 55. Bg7 {[%clk 0:00:20]} 55... Bc4 {[%clk 0:00:15]}
56. Kd4 {[%clk 0:00:20.9]} 56... Ba2 {[%clk 0:00:15.3]} 57. Ke5 {[%clk
0:00:21.4]} 57... Bc4 {[%clk 0:00:15.9]} 1/2-1/2

[Event "*** Titled Tuesday Blitz"]
[Site "Chess.com"]
[Date "2021.03.16"]
[Round "5"]
[White "Lady_Nika"]
[Black "MaevskiyNikolay"]
[Result "0-1"]
[WhiteElo "2400"]
[BlackElo "2551"]
[TimeControl "180+1"]
[EndTime "10:55:23 PDT"]
[Termination "MaevskiyNikolay won by checkmate"]

1. d4 {[%clk 0:03:00.9]} 1... Nf6 {[%clk 0:02:57.3]} 2. e3 {[%clk 0:03:01.2]}
2... c5 {[%clk 0:02:55]} 3. f4 {[%clk 0:02:59.9]} 3... b6 {[%clk 0:02:51]} 4.
Nf3 {[%clk 0:02:59.8]} 4... Bb7 {[%clk 0:02:51.4]} 5. c3 {[%clk 0:03:00.2]} 5...
e6 {[%clk 0:02:51.1]} 6. Bd3 {[%clk 0:03:00.3]} 6... Be7 {[%clk 0:02:49.2]} 7.
O-O {[%clk 0:03:00.4]} 7... O-O {[%clk 0:02:48.1]} 8. Nbd2 {[%clk 0:03:00.3]}
8... Nc6 {[%clk 0:02:45.7]} 9. Qe2 {[%clk 0:03:00.2]} 9... Rc8 {[%clk 0:02:41]}
10. Ne5 {[%clk 0:02:59.6]} 10... d6 {[%clk 0:02:40.3]} 11. Nxc6 {[%clk
0:02:57.4]} 11... Bxc6 {[%clk 0:02:40.7]} 12. b3 {[%clk 0:02:57.8]} 12... Bb7
{[%clk 0:02:36.7]} 13. Bb2 {[%clk 0:02:57.9]} 13... d5 {[%clk 0:02:36.2]} 14.
Rf3 {[%clk 0:02:56.8]} 14... Ne4 {[%clk 0:02:35.8]} 15. Rh3 {[%clk 0:02:56.3]}
15... f5 {[%clk 0:02:32.4]} 16. Nf3 {[%clk 0:02:54.7]} 16... Bf6 {[%clk
0:02:30.9]} 17. Ne5 {[%clk 0:02:54.8]} 17... cxd4 {[%clk 0:02:26.8]} 18. exd4
{[%clk 0:02:48.3]} 18... Bxe5 {[%clk 0:02:17.4]} 19. fxe5 {[%clk 0:02:45.7]}
19... Nxc3 {[%clk 0:02:04.8]} 20. Bxc3 {[%clk 0:02:45.2]} 20... Rxc3 {[%clk
0:02:04.5]} 21. Bxf5 {[%clk 0:02:45.1]} 21... Qc8 {[%clk 0:01:46.6]} 22. Rxc3
{[%clk 0:02:41.7]} 22... Qxc3 {[%clk 0:01:45.1]} 23. Bxe6+ {[%clk 0:02:41.3]}
23... Kh8 {[%clk 0:01:45.1]} 24. Rd1 {[%clk 0:02:40.7]} 24... Rf4 {[%clk
0:01:31.7]} 25. Qh5 {[%clk 0:02:31.9]} 25... Qe3+ {[%clk 0:01:21]} 26. Kh1
{[%clk 0:02:31.1]} 26... g6 {[%clk 0:01:19.8]} 27. Qh3 {[%clk 0:02:27.4]} 27...
Qxd4 {[%clk 0:01:10.1]} 28. Rg1 {[%clk 0:02:08.8]} 28... Qxe5 {[%clk 0:01:07.3]}
29. Qg3 {[%clk 0:02:03.4]} 29... d4 {[%clk 0:01:01]} 30. Bc4 {[%clk 0:02:02.7]}
30... Qf6 {[%clk 0:00:52.5]} 31. h3 {[%clk 0:01:59.5]} 31... Kg7 {[%clk
0:00:49.4]} 32. Kh2 {[%clk 0:01:58.1]} 32... Be4 {[%clk 0:00:46.3]} 33. Re1
{[%clk 0:01:54.6]} 33... g5 {[%clk 0:00:43.2]} 34. a4 {[%clk 0:01:51.4]} 34...
a5 {[%clk 0:00:41.6]} 35. Kg1 {[%clk 0:01:46.9]} 35... h5 {[%clk 0:00:40.8]} 36.
h4 {[%clk 0:01:47]} 36... Rxh4 {[%clk 0:00:37]} 37. Qc7+ {[%clk 0:01:46.3]}
37... Kh6 {[%clk 0:00:36.3]} 38. Rf1 {[%clk 0:01:16.2]} 38... Rf4 {[%clk
0:00:33.5]} 39. Rxf4 {[%clk 0:01:15.5]} 39... gxf4 {[%clk 0:00:33.7]} 40. Qb8
{[%clk 0:01:05.1]} 40... d3 {[%clk 0:00:23.8]} 41. g3 {[%clk 0:01:02.4]} 41...
fxg3 {[%clk 0:00:20.9]} 42. Qxg3 {[%clk 0:00:54.2]} 42... Qa1+ {[%clk
0:00:20.6]} 43. Kf2 {[%clk 0:00:52.8]} 43... Qd4+ {[%clk 0:00:20.3]} 44. Kf1
{[%clk 0:00:49.2]} 44... Qf6+ {[%clk 0:00:19.4]} 45. Ke1 {[%clk 0:00:48.2]}
45... Qc3+ {[%clk 0:00:18.7]} 46. Kf1 {[%clk 0:00:46.8]} 46... Qc1+ {[%clk
0:00:18.4]} 47. Kf2 {[%clk 0:00:46]} 47... Qd2+ {[%clk 0:00:18.6]} 48. Kf1
{[%clk 0:00:45.4]} 48... Qe2+ {[%clk 0:00:18]} 49. Kg1 {[%clk 0:00:45.8]} 49...
Qg4 {[%clk 0:00:15.6]} 50. Qxg4 {[%clk 0:00:44.4]} 50... hxg4 {[%clk 0:00:15.9]}
51. Kf2 {[%clk 0:00:44.9]} 51... Kg5 {[%clk 0:00:16.2]} 52. Ke3 {[%clk
0:00:44.7]} 52... g3 {[%clk 0:00:15]} 53. Kxe4 {[%clk 0:00:36.5]} 53... g2
{[%clk 0:00:15.1]} 54. Kxd3 {[%clk 0:00:36.1]} 54... g1=Q {[%clk 0:00:15.3]} 55.
Bb5 {[%clk 0:00:35.8]} 55... Qc5 {[%clk 0:00:15.7]} 56. Bc4 {[%clk 0:00:35.1]}
56... Kf4 {[%clk 0:00:16.1]} 57. Bb5 {[%clk 0:00:34.6]} 57... Qe3+ {[%clk
0:00:15.6]} 58. Kc4 {[%clk 0:00:34.3]} 58... Ke5 {[%clk 0:00:15.1]} 59. Be8
{[%clk 0:00:31.9]} 59... Qc5+ {[%clk 0:00:15.1]} 60. Kd3 {[%clk 0:00:31.3]}
60... Qd4+ {[%clk 0:00:15.3]} 61. Kc2 {[%clk 0:00:31.7]} 61... Qe3 {[%clk
0:00:15.5]} 62. Bf7 {[%clk 0:00:30]} 62... Kd4 {[%clk 0:00:15.6]} 63. Bc4 {[%clk
0:00:29.5]} 63... Qc3+ {[%clk 0:00:15.2]} 64. Kb1 {[%clk 0:00:29.9]} 64... Qd2
{[%clk 0:00:15.3]} 65. Ka1 {[%clk 0:00:29.8]} 65... Kc3 {[%clk 0:00:15.5]} 66.
b4 {[%clk 0:00:30.5]} 66... Qb2# {[%clk 0:00:15.3]} 0-1

[Event "*** Titled Tuesday Blitz"]
[Site "Chess.com"]
[Date "2021.03.16"]
[Round "5"]
[White "Szparu"]
[Black "northridgehawk"]
[Result "1-0"]
[WhiteElo "2628"]
[BlackElo "2346"]
[TimeControl "180+1"]
[EndTime "10:55:35 PDT"]
[Termination "Szparu won by resignation"]

1. e4 {[%clk 0:03:00.9]} 1... e5 {[%clk 0:02:59.5]} 2. Nf3 {[%clk 0:02:52.7]}
2... Nc6 {[%clk 0:02:59.9]} 3. Bb5 {[%clk 0:02:52.3]} 3... a6 {[%clk 0:02:59.8]}
4. Ba4 {[%clk 0:02:50]} 4... Nf6 {[%clk 0:02:59.9]} 5. O-O {[%clk 0:02:49.4]}
5... b5 {[%clk 0:03:00.4]} 6. Bb3 {[%clk 0:02:48.4]} 6... Bc5 {[%clk 0:03:01]}
7. c3 {[%clk 0:02:46.2]} 7... d6 {[%clk 0:03:01.3]} 8. d4 {[%clk 0:02:45.7]}
8... Bb6 {[%clk 0:03:01.7]} 9. a4 {[%clk 0:02:45]} 9... Rb8 {[%clk 0:03:00.9]}
10. h3 {[%clk 0:02:11.3]} 10... O-O {[%clk 0:02:58.6]} 11. Re1 {[%clk
0:02:02.4]} 11... Bb7 {[%clk 0:02:57.9]} 12. Bg5 {[%clk 0:01:48.3]} 12... h6
{[%clk 0:02:56.6]} 13. Bh4 {[%clk 0:01:43.5]} 13... g5 {[%clk 0:02:56.3]} 14.
Bg3 {[%clk 0:01:43.1]} 14... Re8 {[%clk 0:02:54]} 15. d5 {[%clk 0:01:21.6]}
15... Ne7 {[%clk 0:02:50.3]} 16. Nbd2 {[%clk 0:01:00.1]} 16... Ng6 {[%clk
0:02:48.5]} 17. Qe2 {[%clk 0:00:52.3]} 17... Nh5 {[%clk 0:02:46.9]} 18. Bh2
{[%clk 0:00:51.8]} 18... Nhf4 {[%clk 0:02:46.8]} 19. Qf1 {[%clk 0:00:52.2]}
19... Qf6 {[%clk 0:02:39.9]} 20. Kh1 {[%clk 0:00:51.2]} 20... Bc8 {[%clk
0:02:36.4]} 21. axb5 {[%clk 0:00:44.5]} 21... axb5 {[%clk 0:02:37.3]} 22. Qxb5
{[%clk 0:00:38.8]} 22... Bxh3 {[%clk 0:02:33.6]} 23. gxh3 {[%clk 0:00:36.7]}
23... Nxh3 {[%clk 0:02:31.3]} 24. Qd7 {[%clk 0:00:27.6]} 24... Nxf2+ {[%clk
0:02:25.1]} 25. Kg2 {[%clk 0:00:18.3]} 25... g4 {[%clk 0:02:22.9]} 26. Qf5
{[%clk 0:00:15.9]} 26... gxf3+ {[%clk 0:02:22.6]} 27. Nxf3 {[%clk 0:00:16.1]}
27... Nxe4 {[%clk 0:02:10.7]} 28. Qxe4 {[%clk 0:00:14.5]} 28... Kh7 {[%clk
0:02:07.3]} 29. Bc2 {[%clk 0:00:13.3]} 29... Rg8 {[%clk 0:02:07]} 30. Bg3 {[%clk
0:00:12.1]} 30... Rg7 {[%clk 0:02:05.1]} 31. Rh1 {[%clk 0:00:11.8]} 31... Kg8
{[%clk 0:02:00.6]} 32. Kf1 {[%clk 0:00:06.8]} 32... Ne7 {[%clk 0:01:45.2]} 33.
Bh4 {[%clk 0:00:04.4]} 33... Rg5 {[%clk 0:01:27.9]} 34. Bxg5 {[%clk 0:00:04.1]}
34... hxg5 {[%clk 0:01:28.8]} 35. Qh7+ {[%clk 0:00:03.5]} 35... Kf8 {[%clk
0:01:29.2]} 36. Qh8+ {[%clk 0:00:04.1]} 36... Ng8 {[%clk 0:01:28.1]} 37. Qxf6
{[%clk 0:00:04.1]} 37... Nxf6 {[%clk 0:01:29]} 38. Nxg5 {[%clk 0:00:05]} 38...
Kg7 {[%clk 0:01:25.8]} 39. Ne4 {[%clk 0:00:05]} 39... Nxd5 {[%clk 0:01:24.6]}
40. Ke2 {[%clk 0:00:05.5]} 40... Nf4+ {[%clk 0:01:21.6]} 41. Kf3 {[%clk
0:00:06]} 41... f5 {[%clk 0:01:21.4]} 42. Ng3 {[%clk 0:00:06.4]} 42... Kf6
{[%clk 0:01:20.6]} 43. Nxf5 {[%clk 0:00:06]} 43... Bc5 {[%clk 0:01:17.4]} 44.
Rh6+ {[%clk 0:00:05.9]} 44... Kf7 {[%clk 0:01:17]} 45. b4 {[%clk 0:00:06.4]}
45... Bb6 {[%clk 0:01:16.5]} 46. Rah1 {[%clk 0:00:06.2]} 46... Rf8 {[%clk
0:01:16.1]} 47. Rh7+ {[%clk 0:00:06.4]} 47... Ke6 {[%clk 0:01:16.5]} 48. R1h6+
{[%clk 0:00:05.8]} 48... Kd5 {[%clk 0:01:16.3]} 49. Bb3+ {[%clk 0:00:04.3]}
49... Kc6 {[%clk 0:01:15.6]} 50. Ne7+ {[%clk 0:00:03.7]} 50... Kb5 {[%clk
0:01:14.7]} 51. Ke4 {[%clk 0:00:04.1]} 51... Ne2 {[%clk 0:01:12.4]} 52. Nd5
{[%clk 0:00:03.9]} 52... Ng3+ {[%clk 0:01:11.2]} 53. Kd3 {[%clk 0:00:04.5]}
53... Rf3+ {[%clk 0:01:10.2]} 54. Kc2 {[%clk 0:00:05]} 54... Rf2+ {[%clk
0:01:08.5]} 55. Kb1 {[%clk 0:00:05.5]} 55... Ne4 {[%clk 0:01:07.7]} 56. Rh2
{[%clk 0:00:04.1]} 56... Nd2+ {[%clk 0:01:04.1]} 57. Kc2 {[%clk 0:00:03.9]}
57... Rxh2 {[%clk 0:00:57.5]} 58. Rxh2 {[%clk 0:00:03.7]} 58... Nf1 {[%clk
0:00:57.5]} 59. Rh3 {[%clk 0:00:03.5]} 59... e4 {[%clk 0:00:55.1]} 60. c4+
{[%clk 0:00:04]} 60... Kc6 {[%clk 0:00:54.9]} 61. Nc3 {[%clk 0:00:04.5]} 61...
e3 {[%clk 0:00:53.7]} 62. Ba4+ {[%clk 0:00:04]} 62... Kb7 {[%clk 0:00:51.2]} 63.
Kd3 {[%clk 0:00:04.6]} 63... c5 {[%clk 0:00:46.5]} 64. Nd5 {[%clk 0:00:03.8]}
64... cxb4 {[%clk 0:00:44.8]} 65. Nxb4 {[%clk 0:00:04.6]} 65... Ba5 {[%clk
0:00:43.8]} 66. Rh7+ {[%clk 0:00:04.9]} 66... Kb6 {[%clk 0:00:43.5]} 67. Nc2
{[%clk 0:00:04.6]} 67... Bd2 {[%clk 0:00:39.9]} 68. Rh5 {[%clk 0:00:04.4]} 68...
Ng3 {[%clk 0:00:38.5]} 69. Rd5 {[%clk 0:00:04.5]} 69... Ba5 {[%clk 0:00:32]} 70.
Nxe3 {[%clk 0:00:04.3]} 70... Bb4 {[%clk 0:00:30.6]} 71. Rb5+ {[%clk 0:00:04.4]}
1-0